Cogmind - Beta 13 @@@ ROGUE MODE // 2024.07.05 @ 22:44:11 Player: ywiktor Result: Destroyed by G-50 Soldier with Heavy Laser Performance ------------- Evolutions (1) 500 Regions Visited (6) 1200 Robots Destroyed (51) 255 Value Destroyed (1516) 1516 Prototype IDs (4) 80 Alien Tech Used (0) 0 Bonus (304) 304 TOTAL SCORE: 3855 Bonus ------- High Alert Combat Kills 4 Aligned with FarCom 300 Cogmind --------- Core Integrity 0/400 Matter 0/300 Energy 100/100 System Corruption 29% Temperature Cool (22) Movement Core (250) Ox4 Location -8/Mines Parts ------- > --- POWER (1) -------- (None) > --- PROPULSION (4) --- (None) > --- UTILITY (2) ------ Medium Storage Unit Signal Interpreter > --- WEAPON (2) ------- Rocket Launcher > --- INVENTORY (10) --- Light Nuclear Core Flight Unit Hacking Suite Hacking Suite Particle Gun EM Pulse Cannon Advanced EMP Blaster Flail Peak State ------------ > --- POWER ------------ Reinforced Ion Engine > --- PROPULSION ------- Aluminum Leg Aluminum Leg Aluminum Leg Aluminum Leg > --- UTILITY ---------- Signal Interpreter > --- WEAPON ----------- Firepult > --- INVENTORY -------- Flight Unit Hacking Suite Hacking Suite Heavy Assault Rifle Flail [Rating: 28] Favorites ----------- Power Ion Engine Engine Ion Engine Power Core Light Nuclear Core Propulsion Aluminum Leg Leg Aluminum Leg Utility Signal Interpreter Device Improved Heat Sink Storage Small Storage Unit Processor Signal Interpreter Weapon Light Assault Rifle Energy Gun Particle Gun Energy Cannon EM Pulse Cannon Ballistic Gun Light Assault Rifle Ballistic Cannon Light Cannon Launcher Grenade Launcher Build | -11 -10 -10 -9 -9 -9 -8 ------- Run | Yrd Mat Min Mat Min Exi Min Slots Evolved 2 | . . . 2 . . . Power . | . . . . . . . Propulsion 2 | . . . 2 . . . Utility . | . . . . . . . Weapon . | . . . . . . . Parts Attached 58 | 9 7 4 22 . 6 10 Power 8 | 2 2 . 3 . . 1 Engine 7 | 2 2 . 3 . . . Core 1 | . . . . . . 1 Reactor . | . . . . . . . Propulsion 17 | 2 2 . 9 . . 4 Treads . | . . . . . . . Leg 17 | 2 2 . 9 . . 4 Wheel . | . . . . . . . Hover . | . . . . . . . Flight . | . . . . . . . Utility 7 | 1 . 2 1 . 3 . Device 2 | . . 1 . . 1 . Storage 4 | 1 . . 1 . 2 . Processor 1 | . . 1 . . . . Hackware . | . . . . . . . Protection . | . . . . . . . Artifact . | . . . . . . . Weapon 26 | 4 3 2 9 . 3 5 Energy Gun 5 | 1 . 1 2 . 1 . Energy Cannon 6 | . . . 3 . 2 1 Ballistic Gun 9 | 3 2 . 3 . . 1 Ballistic Cannon 1 | . 1 . . . . . Launcher 5 | . . 1 1 . . 3 Special Weapon . | . . . . . . . Impact Weapon . | . . . . . . . Slashing Weapon . | . . . . . . . Piercing Weapon . | . . . . . . . Special Melee Weapon . | . . . . . . . Unidentified Prototypes 4 | . . . 1 . 3 . Corrupted Parts 4 | . . . . . . 4 System Corruption 29 | . . . . . . 29 Parts Lost 18 | . 1 . 6 . . 11 Power 2 | . . . . . . 2 Propulsion 8 | . . . 2 . . 6 Utility 1 | . . . 1 . . . Weapon 7 | . 1 . 3 . . 3 Highest Loss Streak 8 | . 1 . 2 . . 8 To Critical Strikes . | . . . . . . . Average Slot Usage (%) 87 | . 85 97 92 100 98 60 Engine 10 | . 14 14 10 11 11 . Leg 34 | . 28 28 42 44 44 21 Storage 10 | . 14 14 5 11 10 11 Processor 7 | . . 10 11 11 11 11 Energy Gun 5 | . . 11 8 11 10 . Energy Cannon 2 | . . . 2 11 10 1 Ballistic Gun 11 | . 28 2 10 . . . Launcher 2 | . . 14 . . . 7 Naked Turns . | . . . . . . . Heaviest Build 32 | 13 13 17 29 29 29 32 Greatest Support 40 | 20 20 20 40 30 30 40 Greatest Overweight (x) 4 | 1 . . . . . 4 Average Overweight (x) . | . . . . . . . Largest Inventory Capacity 10 | 8 8 8 10 10 10 10 Average Capacity 8 | 6 8 8 6 10 9 10 Most Carried 9 | 2 8 8 8 9 9 9 Average Carried 7 | 1 7 7 6 8 8 8 Final Capacity 10 | 8 8 8 10 10 10 10 Final Carried 9 | 2 8 8 8 9 9 8 Class Distribution -------------------- 51% | Mutant 48% | Scavenger-Mutant Dominant Class ---------------- Mutant | -10/Materials Mutant | -10/Mines Scavenger-Mutant | -9/Materials Scavenger-Mutant | -9/Mines Scavenger-Mutant | -9/Exiles Mutant | -8/Mines Resources | -11 -10 -10 -9 -9 -9 -8 ----------- Run | Yrd Mat Min Mat Min Exi Min Matter Collected 1021 | 255 144 82 485 . . 55 Remotely . | . . . . . . . Salvage Created 1595 | . 233 31 995 . . 336 Parts 101 | . 15 7 60 . . 19 Haulers Intercepted . | . . . . . . . Recyclers Shooed 1 | . . . . . . 1 Parts Field Recycled . | . . . . . . . Retrieved Matter . | . . . . . . . Parts Self-Destructed . | . . . . . . . Prevented . | . . . . . . . Kills | -11 -10 -10 -9 -9 -9 -8 ------- Run | Yrd Mat Min Mat Min Exi Min Combat Hostiles Destroyed 43 | . 7 5 24 . . 7 Guns 24 | . 7 . 17 . . . Cannons 7 | . . . 7 . . . AOE 11 | . . 5 . . . 6 Classes Destroyed 10 | . 3 . 3 . . 4 Worker 1 | . . . . . . 1 Builder 2 | . . . . . . 2 Tunneler 1 | . . . . . . 1 Recycler 1 | . . . . . . 1 Operator 3 | . 1 . 2 . . . Swarmer 10 | . 3 3 4 . . . Grunt 26 | . 4 2 14 . . 6 Brawler 1 | . . . 1 . . . Duelist 2 | . . . 1 . . 1 Sentry 4 | . . . 4 . . . Best Kill Streak 6 | . 3 3 4 . . 6 Combat Bots Only 4 | . 3 3 4 . . 3 Max Kills in Single Turn 4 | . 1 2 2 . . 4 Gunslinging 1 | . . . 1 . . . Exploded 2 | . . 2 . . . 2 Melee . | . . . . . . . Uniques/NPCs Destroyed . | . . . . . . . Combat | -11 -10 -10 -9 -9 -9 -8 -------- Run | Yrd Mat Min Mat Min Exi Min Hostile Shots Fired 251 | . 51 15 124 . . 61 Missed 73 | . 14 4 38 . . 17 Damage Taken 2685 | . 380 120 1229 . . 956 Core 533 | . 91 38 147 . . 257 Absorbed by Shields . | . . . . . . . Core Remaining (%) 74 | 100 . 48 . . . . Volleys Fired 145 | . 35 9 76 . . 25 Largest 2 | . 2 1 2 . . 2 Hottest 128 | . 40 30 128 . . 126 Shots Fired 259 | . 70 9 151 . . 29 Gun 200 | . 70 . 130 . . . Cannon 28 | . . . 21 . . 7 Launcher 31 | . . 9 . . . 22 Special . | . . . . . . . Kinetic 139 | . 70 . 69 . . . Thermal 62 | . . . 62 . . . Explosive 30 | . . 9 . . . 21 Electromagnetic 28 | . . . 20 . . 8 Robot Hit Streak 16 | . 8 6 16 . . 7 Robot Miss Streak 7 | . 4 1 7 . . 1 Penetration Max . | . . . . . . . Secondary Targets 2 | . . . 2 . . . Max Gunslinging Chain 1 | . . . 1 . . . Shots Hit Robots 164 | . 40 6 101 . . 17 Core Hits 94 | . 17 11 43 . . 23 Critical Kills 1 | . 1 . . . . . Critical Parts Destroyed . | . . . . . . . Critical Strikes 1 | . 1 . . . . . Destroy 1 | . 1 . . . . . Melee Attacks . | . . . . . . . Impact . | . . . . . . . Slashing . | . . . . . . . Piercing . | . . . . . . . Sneak Attacks . | . . . . . . . Combat Hostiles . | . . . . . . . Follow-up Attacks . | . . . . . . . Damage Inflicted 3630 | . 391 493 1503 . . 1243 Guns 1567 | . 387 . 1180 . . . Cannons 475 | . . . 321 . . 154 Explosions 1582 | . . 493 . . . 1089 Melee . | . . . . . . . Ramming 6 | . 4 . 2 . . . Kinetic 1019 | . 387 . 632 . . . Thermal 698 | . . . 698 . . . Explosive 1507 | . . 493 . . . 1014 Electromagnetic 400 | . . . 171 . . 229 Impact . | . . . . . . . Slashing . | . . . . . . . Piercing . | . . . . . . . Highest Corruption 29 | . . . . . . 29 Average Corruption 26 | . . . . . . 26 Corruption Purged . | . . . . . . . Corruption Blocked . | . . . . . . . Effects 25 | . . . . . . 25 Message Errors 4 | . . . . . . 4 Matter Fused 4 | . . . . . . 4 Heat Flow Errors 4 | . . . . . . 4 Energy Discharges 4 | . . . . . . 4 Parts Rejected 2 | . . . . . . 2 Data Loss (minor) 2 | . . . . . . 2 Data Loss (major) 1 | . . . . . . 1 Misfires 1 | . . . . . . 1 Alerts 1 | . . . . . . 1 Misdirections 2 | . . . . . . 2 Overload Shots . | . . . . . . . Overflow Damage 36 | . . 26 . . . 10 Projectiles . | . . . . . . . Explosions 36 | . . 26 . . . 10 Melee . | . . . . . . . Knockbacks . | . . . . . . . Impact . | . . . . . . . Kinetic . | . . . . . . . Secondary . | . . . . . . . Self-Inflicted Damage 175 | . . . . . . 175 Shots 6 | . . . . . . 6 Rammed . | . . . . . . . Targets Rammed 2 | . 1 . 1 . . . Kicked 2 | . 1 . 1 . . . Crushed . | . . . . . . . Highest Temperature 455 | . 9 10 455 . . 266 Average Temperature 79 | . 7 6 73 . . 120 Received Heat Transfer 1041 | . 138 39 459 . . 405 Effects 3 | . . . 2 . . 1 Shutdowns 1 | . . . 1 . . . Energy Bleed 1 | . . . 1 . . . Interference 1 | . . . . . . 1 Siege Activations . | . . . . . . . Robots Corrupted 1 | . . . . . . 1 Combat Hostiles 1 | . . . . . . 1 Parts Fried . | . . . . . . . Impact Corruptions . | . . . . . . . Robots Melted . | . . . . . . . Combat Hostiles . | . . . . . . . Parts Melted . | . . . . . . . Heat Transferred 1591 | . . . 1591 . . . Parts Sabotaged . | . . . . . . . Parts Stolen . | . . . . . . . Parts Stripped . | . . . . . . . Power Chain Reactions . | . . . . . . . Alert | -11 -10 -10 -9 -9 -9 -8 ------- Run | Yrd Mat Min Mat Min Exi Min Peak Influence 407 | . 194 199 407 120 . 136 Initial 120 | . . 19 . 120 . . Average 140 | . 65 175 226 120 . 66 Maximum Alert Level 2 | . . . 2 . . . Low Security (%) 76 | 100 100 100 36 100 . 100 Level 1 22 | . . . 60 . . . Level 2 . | . . . 2 . . . Level 3 . | . . . . . . . Level 4 . | . . . . . . . Level 5 . | . . . . . . . High Security . | . . . . . . . Max Security . | . . . . . . . Squads Dispatched 6 | . 3 . 2 . . 1 Investigation 2 | . 2 . . . . . Extermination . | . . . . . . . Reinforcement 4 | . 1 . 2 . . 1 Assault . | . . . . . . . Garrison . | . . . . . . . Intercept . | . . . . . . . Searches Triggered . | . . . . . . . Construction Impeded 1 | . . . . . . 1 Haulers Reinforced . | . . . . . . . Active Scanning Responses . | . . . . . . . Cargo Convoy Interrupts . | . . . . . . . Stealth | -11 -10 -10 -9 -9 -9 -8 --------- Run | Yrd Mat Min Mat Min Exi Min Distress Signals 3 | . . . 3 . . . Communications Jammed . | . . . . . . . Distress Signals . | . . . . . . . Times Spotted 83 | . 34 5 37 . . 7 Peak Tracking Total 6 | . 6 3 6 . . 4 Tactical Retreats 5 | . 1 . 4 . . . Traps | -11 -10 -10 -9 -9 -9 -8 ------- Run | Yrd Mat Min Mat Min Exi Min Traps Triggered 5 | . 3 . 2 . . . Indirectly . | . . . . . . . Trap Hack Attempts . | . . . . . . . Triggered . | . . . . . . . Disarmed . | . . . . . . . Reprogrammed . | . . . . . . . Reused . | . . . . . . . Traps Extracted . | . . . . . . . Installed . | . . . . . . . Triggered . | . . . . . . . Machines | -11 -10 -10 -9 -9 -9 -8 ---------- Run | Yrd Mat Min Mat Min Exi Min Machines Disabled 2 | . . 1 1 . . . Max in Single Turn 1 | . . 1 1 . . . Machines Repaired . | . . . . . . . Machines Dismantled . | . . . . . . . Machines Sabotaged . | . . . . . . . Overloaded Fab Kills . | . . . . . . . Hacking | -11 -10 -10 -9 -9 -9 -8 --------- Run | Yrd Mat Min Mat Min Exi Min Machines Accessed 9 | . 3 1 5 . . . Terminals 7 | . 3 . 4 . . . Fabricators . | . . . . . . . Repair Stations . | . . . . . . . Recycling Units 1 | . . . 1 . . . Scanalyzers . | . . . . . . . Garrison Access . | . . . . . . . Total Hacks 18 | . 6 1 11 . . . Successful 11 | . 3 1 7 . . . Failed 7 | . 3 . 4 . . . Catastrophic 1 | . 1 . . . . . Database Lockouts . | . . . . . . . Manual 16 | . 6 . 9 . 1 . Terminals 14 | . 6 . 8 . . . Fabricators . | . . . . . . . Repair Stations . | . . . . . . . Recycling Units 3 | . . . 3 . . . Scanalyzers . | . . . . . . . Garrison Access . | . . . . . . . Terminal Hacks 3 | . 1 1 1 . . . Open Door 1 | . . 1 . . . . Branch Access Points 1 | . . . 1 . . . Hauler Manifests 1 | . 1 . . . . . Fabricator Hacks . | . . . . . . . Repair Station Hacks . | . . . . . . . Recycling Unit Hacks 2 | . . . 2 . . . Report Inventory 2 | . . . 2 . . . Scanalyzer . | . . . . . . . Garrison Access Hacks . | . . . . . . . Unauthorized Hacks 6 | . 2 . 4 . . . Terminals 5 | . 2 . 3 . . . Botnet 5 | . 2 . 3 . . . Fabricators . | . . . . . . . Repair Stations . | . . . . . . . Recycling Units 1 | . . . 1 . . . Reject 1 | . . . 1 . . . Scanalyzers . | . . . . . . . Garrison Access . | . . . . . . . Data Cores Recovered . | . . . . . . . Used . | . . . . . . . Hacking Detections 8 | . 3 . 5 . . . Full Trace Events . | . . . . . . . Feedback Events . | . . . . . . . Feedback Blocked . | . . . . . . . Robot Schematics Acquired . | . . . . . . . Robots Built . | . . . . . . . Authchips . | . . . . . . . Time . | . . . . . . . Total Robot Build Rating . | . . . . . . . Part Schematics Acquired . | . . . . . . . Parts Built . | . . . . . . . Authchips . | . . . . . . . Time . | . . . . . . . Total Part Build Rating . | . . . . . . . Parts Repaired . | . . . . . . . Time . | . . . . . . . Parts Recycled . | . . . . . . . Recycled Matter . | . . . . . . . Retrieved Matter . | . . . . . . . Retrieved Components . | . . . . . . . Parts Scanalyzed . | . . . . . . . Part Schematics Acquired . | . . . . . . . Parts Damaged . | . . . . . . . Bothacking | -11 -10 -10 -9 -9 -9 -8 ------------ Run | Yrd Mat Min Mat Min Exi Min Used RIF Installer . | . . . . . . . Robots Hacked . | . . . . . . . Non-combat . | . . . . . . . Combat . | . . . . . . . Robot Hacks Applied . | . . . . . . . Relay Couplers Released . | . . . . . . . Fabnet Peak Effective % . | . . . . . . . Robots Rewired . | . . . . . . . Allies Hacked . | . . . . . . . Hacks Repelled . | . . . . . . . Allies | -11 -10 -10 -9 -9 -9 -8 -------- Run | Yrd Mat Min Mat Min Exi Min Total Allies . | . . . . . . . Largest Group . | . . . . . . . Highest-Rated Group . | . . . . . . . Highest-Rated Ally . | . . . . . . . Total Orders . | . . . . . . . Ally Attacks . | . . . . . . . Total Damage . | . . . . . . . Kills . | . . . . . . . Allies Corrupted . | . . . . . . . Allies Melted . | . . . . . . . Intel | -11 -10 -10 -9 -9 -9 -8 ------- Run | Yrd Mat Min Mat Min Exi Min Robot Analysis Total . | . . . . . . . Derelict Logs Recovered 1 | . . 1 . . . . Drone Launches . | . . . . . . . Drone Recoveries . | . . . . . . . Exploration | -11 -10 -10 -9 -9 -9 -8 ------------- Run | Yrd Mat Min Mat Min Exi Min Turns Passed 3615 | 56 1012 433 1233 84 316 481 Spaces Moved 2261 | 37 708 340 663 70 251 192 Core 12 | 4 . . . . . 8 Treads . | . . . . . . . Legs 2249 | 33 708 340 663 70 251 184 Wheels . | . . . . . . . Hover . | . . . . . . . Flight . | . . . . . . . Fastest Speed 50 | 50 120 120 120 120 120 120 Average Speed 120 | 114 120 120 120 120 120 127 Slowest Speed 250 | 190 120 120 120 120 120 250 Overloaded Moves . | . . . . . . . Propulsion Burnouts . | . . . . . . . Robots Hopped . | . . . . . . . Cave-ins Triggered . | . . . . . . . Exploration Rate (%) 43 | 4 58 75 49 22 61 37 Regions Visited 6 Branch Regions 4 Pre-discovered Areas . | . . . . . . . Known Exits Taken 4 | . . 1 1 1 1 . Unknown Exits Taken 2 | 1 1 . . . . . Scrap Searched 3 | . . 3 . . . . Spaces Dug 7 | . . . . . . 7 Terrain Destroyed 216 | . . 64 . . . 152 Melee . | . . . . . . . Projectile . | . . . . . . . AOE 216 | . . 64 . . . 152 Terrain Rammed . | . . . . . . . Walls Destroyed . | . . . . . . . Machines Disabled . | . . . . . . . Actions | -11 -10 -10 -9 -9 -9 -8 --------- Run | Yrd Mat Min Mat Min Exi Min Total 2895 | 46 812 355 950 70 266 396 Wait 384 | . 45 . 172 . . 167 Move 2255 | 36 707 339 662 69 250 192 Hop . | . . . . . . . Pick Up 25 | 1 10 1 6 1 4 2 Fast Attach 29 | 6 2 2 8 . 6 5 Attach 10 | . 1 . 6 . . 3 Detach 2 | . . . 2 . . . Swap 19 | 3 4 2 8 . . 2 Drop 24 | . 7 2 9 . 6 . Fire 145 | . 35 9 76 . . 25 Melee . | . . . . . . . Ram . | . . . . . . . Kick 2 | . 1 . 1 . . . Crush . | . . . . . . . Escape Stasis . | . . . . . . . Rewire . | . . . . . . . Trap . | . . . . . . . Miscellaneous . | . . . . . . . Route ------- -11/Scrapyard -10/Materials (discovered 3 exits: *Mat x2 / *Min) -10/Mines -9/Materials (discovered 3 exits: [*Mat] / *Min x2) -9/Mines (discovered 2 exits: [*Mat] / *Exi) -9/Exiles (discovered 2 exits: *Min x2) -8/Mines History --------- Turn | Location | Event 2 | -11/Scrapyard | Discovered new exit (range 16) 57 | -11/Scrapyard | Entered Materials 199 | -10/Materials | Discovered new exit (range 13) 300 | -10/Materials | Build established: Mutant 352 | -10/Materials | Discovered new exit (range 4) 977 | -10/Materials | Discovered new exit (range 10) 1069 | -10/Materials | Entered Mines 1107 | -10/Mines | Core integrity fell below 50% 1175 | -10/Mines | Learned 2 Materials zone layouts 1279 | -10/Mines | Found the Drone Emporium 1356 | -10/Mines | Found a hidden stash of uninstalled traps 1490 | -10/Mines | Discovered new exit (range 11) 1501 | -10/Mines | Identified exit to Materials 1502 | -10/Mines | Entered Materials 1502 | -9/Materials | Evolved 2 slots: Propulsion x2 1647 | -9/Materials | Identified exit to Mines 1806 | -9/Materials | Build established: Scavenger-Mutant 2222 | -9/Materials | Discovered new exit (range 15) 2735 | -9/Materials | Entered Mines 2742 | -9/Mines | Received a Rocket Launcher from a helpful Derelict 2802 | -9/Mines | Discovered new exit (range 5) 2813 | -9/Mines | Deemed a non-threat by the Exiles lab entrance 2814 | -9/Mines | Discovered new exit (range 5) 2818 | -9/Mines | Identified exit to Exiles 2819 | -9/Mines | Entered Exiles 2837 | -9/Exiles | Discovered new exit (range 15) 2852 | -9/Exiles | Met 8R-AWN 2869 | -9/Exiles | Met EX-HEX 2906 | -9/Exiles | Met EX-BIN 2920 | -9/Exiles | Aligned with FarCom system 2921 | -9/Exiles | Given EX-Vault access code 2956 | -9/Exiles | Opened EX-Vault 2963 | -9/Exiles | Found Prototype Device 2963 | -9/Exiles | Identified Chronowheel 2963 | -9/Exiles | Activated Chronowheel 2971 | -9/Exiles | Found Prototype Energy Cannon 2971 | -9/Exiles | Identified Firepult 2974 | -9/Exiles | Found Prototype Storage 2974 | -9/Exiles | Identified Superbattery 3023 | -9/Exiles | Warned to stay clear of 0b10 Research branches 3063 | -9/Exiles | Met EX-DEC 3121 | -9/Exiles | Discovered new exit (range 11) 3134 | -9/Exiles | Identified exit to Mines 3135 | -9/Exiles | Entered Mines 3179 | -8/Mines | Core integrity fell below 50% 3202 | -8/Mines | System corruption reached 10% 3213 | -8/Mines | Lost 8 parts (1p5n2w) 3442 | -8/Mines | Build established: Mutant 3557 | -8/Mines | Core integrity fell below 20% 3616 | -8/Mines | Destroyed by G-50 Soldier with Heavy Laser Last Messages --------------- 03520_ The unstable cave ceiling collapses. 03520_ Lgt. Nuclear Core destroyed. 03526_ System corrupted: Aluminum Leg rejected. 03543_ System corrupted: Matter fused (-6). 03548_ T-07 Excavator is excavating. 03555_ System corrupted: Aluminum Leg stumbles. 03558_ System corrupted: Aluminum Leg rejected. 03575_ System corrupted: Energy discharge (-29). 03590_ K-01 Serf collects debris. 03594_ System corrupted: Heat flow error (+292). 03596_ K-01 Serf collects debris. 03597_ G-47 Trooper destroyed. 03597_ T-07 Excavator destroyed. 03597_ R-06 Scavenger destroyed. 03599_ G-47 Trooper destroyed. 03601_ K-01 Serf destroyed. 03603_ The unstable cave ceiling collapses. 03604_ Aluminum Leg destroyed. 03604_ Critical hit (Burn: +37). 03608_ The unstable cave ceiling collapses. Map ----- +----------------------------------------------------+ | | | | | | | | | | | | | | | | | | | | | | | | | | | | | | | | | | | | | | | | | ?????????????????????????????????????????????????? | | ?????????????????????#####???????????????????????? | | ????????????????????## ###########?????????????? | | ????????????????????#[ # #?????????????? | | ?????????????????#### $ ???????????????? | | ????????????## ## @ #????????????????????? | | ???????????## ![! ####????????????????????? | | ??????????## #???????????????????????? | | ??????????# ##??????????????????????? | | ??????????# g #??????????????????????? | | ??????????# #! #??????????????????????? | | ??????? ## ##??????????????????????? | | #?????## ??####???????????????????????? | | ###### %= ??????????????????????????????? | | ###???????????????????????????????? | | #??????????????????????????????????? | | #???????????????????????????????????? | | ## ##????????????????????????????????????? | | ??## #?????????????????????????????????????? | | ##????# ##????????????????????????????????????? | | ??????# ##???????????????????????????????????? | | ?????## #???????????????????????????????????? | | ???### ###### #???????????????????????????? | | ??## #???????????????????????????? | | ??# #??????????????????????????? | | ??# ### ##### !????????????????????????? | | ??## ##??###??????? ????????????????????????? | | ???# #????????????????????????????????????????? | | ???## =#????????????????????????????????????????? | | ???## ##???????????????????????????????????????? | +----------------------------------------------------+ Best States ------------- Heat Dissipation 39 Energy Generation 14 Energy Capacity 265 Matter Stores 300 Matter Capacity 300 Sight Range 16 Terrain Scan Density 10 Evasion (%) 55 Item Schematics ----------------- None Robot Schematics ------------------ None Fabricated ------------ Nothing Alien Tech Used ----------------- None Achievements -------------- Dramatic Entrance Challenges ------------ None Game ------ Seed DerelictGuidedShearcannon Manual? 0 Play Time 00:25:36 Cumulative 32.4 hours Start 2024.07.05 @ 21:59:16 End 2024.07.05 @ 22:44:11 Sessions 1 Manual Loads 0 Difficulty Rogue Special Mode None Game No. 33 Rogue 33 Adventurer 0 Explorer 0 Win Type - Total 0 Types 0/0/0/0/0/0/0/0/0 Lore% 36 Gallery% 35 Achievement% 34 Wizard Run 0 Options --------- Layout 1 ASCII 0 Keyboard 0 Movement Numpad Keybinds 0 Fullscreen 1 Font 32/SmallcapsGlow Map View 50x35 Zoom Use 0% Tactical HUD 1 Map Filters NONE Filters NONE Steam 1 RUN: 454b1339-aa18-435d-ba6b-c09abb9b28e5